fUST/lending_fUST_20241002
["ID","MTS","AMOUNT","RATE_DAILY","PERIOD"]
[339649768,1727805045801,-317.11161893,0.00015112,2]
[339649769,1727805045820,-182.88838107,0.00015112,2]
[339649770,1727805045830,-500.0,0.00015112,2]
[339649771,1727805045841,-31.38535275,0.00015112,2]
[339649772,1727805045854,-468.61464725,0.00015112,2]
[339649773,1727805045863,-500.0,0.00015112,2]
[339649774,1727805045874,-500.0,0.00015112,2]
[339649775,1727805045888,-500.0,0.00015112,2]
[339649776,1727805045904,-458.73923305,0.00015112,2]
[339649777,1727805045914,-500.0,0.00015112,2]
[339649778,1727805045925,-500.0,0.00015112,2]
[339649779,1727805045936,-26.27068291,0.00015112,2]
[339649780,1727805045950,-473.72931709,0.00015112,2]
[339649781,1727805045961,-500.0,0.00015112,2]
[339649782,1727805045971,-500.0,0.00015112,2]
[339649783,1727805045982,-500.0,0.00015112,2]
[339649784,1727805045991,-199.57379285,0.00015112,2]
[339649827,1727806234614,-300.0,0.00012428,2]
[339649828,1727806234624,-300.0,0.00012428,2]
[339649829,1727806234636,-5396.39481535,0.00012429,2]
[339649856,1727806238055,-4873.25097948,0.00012429,2]
[339649900,1727806239949,-14630.35420517,0.00012429,2]
[339649901,1727806239960,-250.0,0.00012486,2]
[339649903,1727806239970,-3000.0,0.00012941,2]
[339649905,1727806239980,-250.0,0.00012988,2]
[339649907,1727806239991,-250.0,0.00013024,2]
[339649909,1727806240002,-250.0,0.00013059,2]
[339649911,1727806240013,-250.0,0.00013095,2]
[339649914,1727806240023,-250.0,0.00013131,2]
[339649916,1727806240035,-1268.48098468,0.00013131,2]
[339649918,1727806240047,-250.0,0.00013166,2]
[339649920,1727806240059,-250.0,0.00013202,2]
[339649922,1727806240071,-250.0,0.00013237,2]
[339649924,1727806240084,-250.0,0.00013273,2]
[339649927,1727806240100,-250.0,0.00013309,2]
[339649947,1727806240285,-250.0,0.00013344,2]
[339649950,1727806240307,-250.0,0.0001338,2]
[339649952,1727806240316,-250.0,0.00013416,2]
[339649954,1727806240325,-250.0,0.00013451,2]
[339649956,1727806240334,-250.0,0.00013487,2]
[339649958,1727806240344,-250.0,0.00013522,2]
[339649960,1727806240353,-250.0,0.00013558,2]
[339649962,1727806240362,-250.0,0.00013594,2]
[339649964,1727806240372,-179.54147111,0.00013599,2]
[339649966,1727806240381,-250.0,0.00013629,2]
[339649968,1727806240390,-420.0,0.00013637,2]
[339649970,1727806240399,-250.0,0.00013665,2]
[339649972,1727806240408,-420.0,0.00013671,2]
[339649974,1727806240417,-3154.322945,0.00013699,2]
[339649976,1727806240426,-749.226882,0.00013699,2]
[339649978,1727806240436,-8414.7519822,0.00013699,2]
[339649980,1727806240447,-155.0,0.000139,2]
[339649982,1727806240457,-711.76990819,0.00013947,2]
[339649984,1727806240466,-500.0,0.00013947,2]
[339649986,1727806240476,-155.0,0.0001413,2]
[339649988,1727806240486,-155.0,0.0001437,2]
[339649990,1727806240495,-3154.322945,0.00014384,2]
[339649992,1727806240505,-817.40608824,0.00014489,2]
[339649994,1727806240514,-155.0,0.000146,2]
[339649996,1727806240523,-153.0,0.00014795,2]
[339649998,1727806240533,-1000.0,0.00014803,2]
[339650000,1727806240543,-1000.0,0.00014803,4]
[339650002,1727806240553,-1000.0,0.00014803,6]
[339650004,1727806240564,-1000.0,0.00014803,8]
[339650006,1727806240574,-1000.0,0.00014803,10]
[339650008,1727806240584,-1000.0,0.00014803,12]
[339650009,1727806240595,-694.57,0.00014803,14]
[339650010,1727806240604,-1253.94777999,0.00014897,2]
[339650011,1727806240616,-193.24751998,0.000149,2]
[339650012,1727806240627,-255.13226175,0.000149,2]
[339650013,1727806240638,-500.0,0.000149,2]
[339650014,1727806240648,-516.80321754,0.000149,2]
[339650015,1727806240658,-153.0,0.00014903,2]
[339650016,1727806240667,-153.0,0.00014903,2]
[339650018,1727806240676,-153.0,0.00014903,2]
[339650020,1727806240686,-153.0,0.00014903,2]
[339650021,1727806240697,-7193.10270582,0.00014944,2]
[339650023,1727806240706,-194.08780366,0.00014945,2]
[339650025,1727806240715,-587.0,0.00014964,2]
[339650027,1727806240724,-500.0,0.00014973,2]
[339650028,1727806240735,-500.0,0.00014973,2]
[339650029,1727806240745,-500.0,0.00014973,2]
[339650030,1727806240754,-500.0,0.00014973,2]
[339650031,1727806240763,-548.83407114,0.00014973,2]
[339650032,1727806240772,-500.0,0.00014973,2]
[339650033,1727806240781,-500.0,0.00014973,2]
[339650035,1727806240791,-500.0,0.00014973,2]
[339650037,1727806240801,-500.0,0.00014973,2]
[339650039,1727806240810,-500.0,0.00014973,2]
[339650041,1727806240820,-500.0,0.00014973,2]
[339650043,1727806240829,-500.0,0.00014987,2]
[339650045,1727806240838,-279.27366867,0.00014987,2]
[339650046,1727806240848,-355.66438001,0.00014987,2]
[339650047,1727806240858,-500.0,0.00014987,2]
[339650048,1727806240868,-500.0,0.00014987,2]
[339650049,1727806240879,-500.0,0.00014987,2]
[339650050,1727806240891,-500.0,0.00014987,2]
[339650051,1727806240903,-500.0,0.00014987,2]
[339650052,1727806240914,-500.0,0.00014987,2]
[339650053,1727806240926,-500.0,0.00014987,2]
[339650054,1727806240937,-615.31666151,0.00014987,2]
[339650055,1727806240949,-300.0,0.00014987,2]
[339650056,1727806240959,-568.59390349,0.00014987,2]
[339650057,1727806240967,-268.14875251,0.00014987,2]
[339650058,1727806240979,-500.0,0.00014987,2]
[339650059,1727806240992,-500.0,0.00014987,2]
[339650060,1727806241002,-500.0,0.00014987,2]
[339650061,1727806241014,-500.0,0.00014987,2]
[339650062,1727806241026,-2260.53587932,0.00014987,2]
[339650063,1727806241037,-500.0,0.00014987,2]
[339650064,1727806241048,-500.0,0.00014987,2]
[339650065,1727806241057,-535.80311244,0.00014987,2]
[339650066,1727806241067,-500.0,0.00014987,2]
[339650067,1727806241076,-500.0,0.00014987,2]
[339650068,1727806241086,-2260.53587932,0.00014987,2]
[339650069,1727806241098,-500.0,0.00014987,2]
[339650070,1727806241108,-500.0,0.00014987,2]
[339650071,1727806241117,-500.0,0.00014987,2]
[339650072,1727806241127,-500.0,0.00014987,2]
[339650073,1727806241137,-500.0,0.00014987,2]
[339650074,1727806241146,-2260.53587932,0.00014987,2]
[339650075,1727806241156,-500.0,0.00014987,2]
[339650076,1727806241166,-500.0,0.00014987,2]
[339650077,1727806241175,-2260.53587932,0.00014987,2]
[339650078,1727806241185,-500.0,0.00014987,2]
[339650079,1727806241194,-500.0,0.00014987,2]
[339650080,1727806241204,-158.37530782,0.00014987,2]
[339650081,1727806241213,-500.0,0.00014987,2]
[339650082,1727806241223,-500.0,0.00014987,2]
[339650083,1727806241234,-2260.53587932,0.00014987,2]
[339650084,1727806241244,-500.0,0.00014987,2]
[339650085,1727806241254,-500.0,0.00014987,2]
[339650086,1727806241264,-2260.53587932,0.00014987,2]
[339650087,1727806241274,-500.0,0.00014987,2]
[339650088,1727806241283,-500.0,0.00014987,2]
[339650089,1727806241292,-2260.53587932,0.00014987,2]
[339650090,1727806241301,-500.0,0.00014987,2]
[339650091,1727806241312,-500.0,0.00014987,2]
[339650092,1727806241323,-500.0,0.00014987,2]
[339650093,1727806241333,-2260.53587932,0.00014987,2]
[339650094,1727806241343,-500.0,0.00014987,2]
[339650095,1727806241353,-500.0,0.00014987,2]
[339650096,1727806241364,-2260.53587932,0.00014987,2]
[339650097,1727806241373,-500.0,0.00014987,2]
[339650098,1727806241383,-500.0,0.00014987,2]
[339650099,1727806241392,-500.0,0.00014987,2]
[339650100,1727806241402,-2260.53587932,0.00014987,2]
[339650101,1727806241413,-500.0,0.00014987,2]
[339650102,1727806241422,-500.0,0.00014987,2]
[339650103,1727806241434,-2260.53587932,0.00014987,2]
[339650104,1727806241447,-500.0,0.00014987,2]
[339650105,1727806241457,-500.0,0.00014987,2]
[339650106,1727806241468,-2260.53587932,0.00014987,2]
[339650107,1727806241478,-500.0,0.00014987,2]
[339650108,1727806241488,-500.0,0.00014987,2]
[339650109,1727806241498,-290.32110858,0.00014987,2]
[339650110,1727806241508,-2260.53587932,0.00014987,2]
[339650111,1727806241517,-500.0,0.00014987,2]
[339650112,1727806241527,-500.0,0.00014987,2]
[339650113,1727806241536,-500.0,0.00014987,2]
[339650114,1727806241547,-2260.53587932,0.00014987,2]
[339650115,1727806241557,-500.0,0.00014987,2]
[339650116,1727806241567,-500.0,0.00014987,2]
[339650117,1727806241577,-500.0,0.00014987,2]
[339650118,1727806241587,-2260.53587932,0.00014987,2]
[339650119,1727806241597,-500.0,0.00014987,2]
[339650120,1727806241607,-500.0,0.00014987,2]
[339650121,1727806241617,-2260.53587932,0.00014987,2]
[339650122,1727806241626,-500.0,0.00014987,2]
[339650123,1727806241636,-500.0,0.00014987,2]
[339650124,1727806241647,-2260.53587932,0.00014987,2]
[339650125,1727806241657,-500.0,0.00014987,2]
[339650126,1727806241666,-500.0,0.00014987,2]
[339650127,1727806241676,-2260.53587932,0.00014987,2]
[339650128,1727806241686,-500.0,0.00014987,2]
[339650129,1727806241696,-500.0,0.00014987,2]
[339650130,1727806241709,-500.0,0.00014987,2]
[339650131,1727806241719,-500.0,0.00014987,2]
[339650132,1727806241728,-500.0,0.00014987,2]
[339650133,1727806241737,-2260.53587932,0.00014987,2]
[339650134,1727806241748,-500.0,0.00014987,2]
[339650135,1727806241758,-500.0,0.00014987,2]
[339650136,1727806241767,-500.0,0.00014987,2]
[339650137,1727806241777,-2260.53587932,0.00014987,2]
[339650138,1727806241786,-500.0,0.00014987,2]
[339650139,1727806241795,-500.0,0.00014987,2]
[339650140,1727806241805,-500.0,0.00014987,2]
[339650141,1727806241815,-2260.53587932,0.00014987,2]
[339650142,1727806241824,-500.0,0.00014987,2]
[339650143,1727806241834,-2260.53587932,0.00014987,2]
[339650144,1727806241843,-500.0,0.00014987,2]
[339650145,1727806241853,-500.0,0.00014987,2]
[339650146,1727806241862,-500.0,0.00014987,2]
[339650147,1727806241872,-2260.53587932,0.00014987,2]
[339650148,1727806241881,-500.0,0.00014987,2]
[339650149,1727806241890,-627.87314971,0.00014987,2]
[339650150,1727806241899,-2260.53587932,0.00014987,2]
[339650151,1727806241909,-500.0,0.00014987,2]
[339650152,1727806241918,-500.0,0.00014987,2]
[339650153,1727806241928,-500.0,0.00014987,2]
[339650154,1727806241937,-2260.53587932,0.00014987,2]
[339650155,1727806241951,-500.0,0.00014987,2]
[339650156,1727806241962,-2260.53587932,0.00014987,2]
[339650157,1727806241978,-500.0,0.00014987,2]
[339650158,1727806241987,-500.0,0.00014987,2]
[339650159,1727806241997,-2260.53587932,0.00014987,2]
[339650160,1727806242007,-2260.53587932,0.00014987,2]
[339650161,1727806242016,-500.0,0.00014987,2]
[339650162,1727806242025,-500.0,0.00014987,2]
[339650163,1727806242034,-500.0,0.00014987,2]
[339650164,1727806242043,-2260.53587932,0.00014987,2]
[339650165,1727806242053,-500.0,0.00014987,2]
[339650166,1727806242062,-2260.53587932,0.00014987,2]
[339650167,1727806242073,-500.0,0.00014987,2]
[339650168,1727806242082,-500.0,0.00014987,2]
[339650169,1727806242093,-2260.53587932,0.00014987,2]
[339650170,1727806242105,-500.0,0.00014987,2]
[339650171,1727806242116,-2260.53587932,0.00014987,2]
[339650172,1727806242125,-500.0,0.00014987,2]
[339650173,1727806242134,-500.0,0.00014987,2]
[339650174,1727806242146,-500.0,0.00014987,2]
[339650175,1727806242156,-2260.53587932,0.00014987,2]
[339650176,1727806242167,-500.0,0.00014987,2]
[339650177,1727806242178,-2260.53587932,0.00014987,2]
[339650178,1727806242188,-500.0,0.00014987,2]
[339650179,1727806242203,-500.0,0.00014987,2]
[339650180,1727806242213,-2260.53587932,0.00014987,2]
[339650181,1727806242223,-500.0,0.00014987,2]
[339650182,1727806242232,-2260.53587932,0.00014987,2]
[339650183,1727806242242,-500.0,0.00014987,2]
[339650184,1727806242254,-2260.53587932,0.00014987,2]
[339650185,1727806242266,-500.0,0.00014987,2]
[339650186,1727806242277,-2260.53587932,0.00014987,2]
[339650187,1727806242287,-2260.53587932,0.00014987,2]
[339650188,1727806242296,-2260.53587932,0.00014987,2]
[339650189,1727806242305,-500.0,0.00014987,2]
[339650190,1727806242315,-2260.53587932,0.00014987,2]
[339650191,1727806242324,-500.0,0.00014987,2]
[339650192,1727806242334,-2260.53587932,0.00014987,2]
[339650193,1727806242344,-500.0,0.00014987,2]
[339650194,1727806242355,-2260.53587932,0.00014987,2]
[339650196,1727806242365,-500.0,0.00014987,2]
[339650197,1727806242376,-2260.53587932,0.00014987,2]
[339650198,1727806242388,-500.0,0.00014987,2]
[339650199,1727806242398,-2260.53587932,0.00014987,2]
[339650200,1727806242408,-500.0,0.00014987,2]
[339650201,1727806242418,-2260.53587932,0.00014987,2]
[339650203,1727806242428,-2260.53587932,0.00014987,2]
[339650204,1727806242438,-2260.53587932,0.00014987,2]
[339650205,1727806242450,-2260.53587932,0.00014987,2]
[339650206,1727806242459,-9504.88923244,0.00014988,2]
[339650245,1727806242981,-35338.47756469,0.00014988,2]
[339650247,1727806242990,-11153.55411087,0.00014988,2]
[339650249,1727806243002,-281846.724663,0.00014988,2]
[339650251,1727806243012,-51594.89886554,0.00014988,2]
[339650254,1727806243029,-660.08,0.00014988,2]
[339650256,1727806243040,-6207.73816081,0.00014988,2]
[339650258,1727806243053,-4192.59727497,0.00014988,2]
[339650260,1727806243067,-268470.60383068,0.00014988,2]
[339650262,1727806243076,-151.0,0.00014997,2]
[339650264,1727806243086,-151.0,0.00014997,2]
[339650266,1727806243098,-3778.10286,0.00014999,2]
[339650268,1727806243109,-50159.0,0.00015,2]
[339650270,1727806243119,-1000.0,0.00015,12]
[339650272,1727806243128,-151.0,0.00015,2]
[339650274,1727806243139,-150.112233,0.00015,2]
[339650275,1727806243149,-150.112233,0.00015,2]
[339650277,1727806243159,-150.112233,0.00015,2]
[339650279,1727806243171,-150.112233,0.00015,2]
[339650281,1727806243181,-150.112236,0.00015,2]
[339650283,1727806243191,-874.237809,0.00015,2]
[339650285,1727806243203,-874.237809,0.00015,2]
[339650287,1727806243212,-1000.0,0.00015024,2]
[339650289,1727806243221,-31869.93981988,0.00015035,2]
[339650332,1727806245920,-153.0,0.00014903,2]
[339650333,1727806245931,-9885.96780084,0.00015035,2]
[339650335,1727806245943,-587.0,0.00015038,2]
[339650337,1727806245955,-500.0,0.00015058,2]
[339650339,1727806245967,-3154.322945,0.00015068,2]
[339650341,1727806245977,-1305.58186921,0.000151,2]
[339650343,1727806245987,-151.0,0.00015115,2]
[339650344,1727806245997,-874.237809,0.00015115,2]
[339650346,1727806246007,-874.237809,0.00015115,2]
[339650348,1727806246016,-474.96042,0.00015124,2]
[339650350,1727806246026,-196.92415125,0.00015124,2]
[339650353,1727806246045,-278.03626875,0.00015124,2]
[339650355,1727806246055,-151.0,0.00015124,2]
[339650356,1727806246065,-230.96616,0.00015124,2]
[339650358,1727806246074,-240.136454,0.00015125,2]
[339650360,1727806246084,-240.136454,0.00015125,2]
[339650362,1727806246094,-151.0,0.00015125,2]
[339650363,1727806246106,-151.0,0.00015125,2]
[339650365,1727806246115,-474.96042,0.00015125,2]
[339650367,1727806246125,-474.96042,0.00015125,2]
[339650369,1727806246135,-151.0,0.00015125,2]
[339650371,1727806246146,-151.0,0.00015125,2]
[339650373,1727806246155,-151.0,0.00015125,2]
[339650375,1727806246166,-874.237809,0.00015125,2]
[339650376,1727806246176,-874.237809,0.00015125,2]
[339650378,1727806246188,-160.0,0.00015134,2]
[339650380,1727806246201,-160.0,0.00015134,2]
[339650382,1727806246210,-1000.0,0.00015134,2]
[339650384,1727806246219,-240.136454,0.00015135,2]
[339650385,1727806246229,-240.136454,0.00015135,2]
[339650386,1727806246238,-151.0,0.00015135,2]
[339650388,1727806246248,-151.0,0.00015135,2]
[339650389,1727806246257,-261.754001,0.00015135,2]
[339650391,1727806246267,-261.827964,0.00015135,2]
[339650392,1727806246277,-151.0,0.00015135,2]
[339650393,1727806246286,-151.0,0.00015135,2]
[339650394,1727806246296,-871.446969,0.00015135,2]
[339650395,1727806246306,-871.446969,0.00015135,2]
[339650396,1727806246315,-871.446969,0.00015135,2]
[339650397,1727806246325,-871.446969,0.00015135,2]
[339650398,1727806246334,-199.831203,0.00015135,2]
[339650399,1727806246345,-199.831203,0.00015135,2]
[339650400,1727806246355,-199.831203,0.00015135,2]
[339650401,1727806246365,-199.831203,0.00015135,2]
[339650402,1727806246375,-7107.630399,0.00015135,2]
[339650403,1727806246385,-7107.630399,0.00015135,2]
[339650404,1727806246396,-7107.630399,0.00015135,2]
[339650405,1727806246406,-7107.630399,0.00015135,2]
[339650406,1727806246416,-151.0,0.00015135,2]
[339650407,1727806246428,-151.0,0.00015135,2]
[339650408,1727806246437,-151.0,0.00015135,2]
[339650409,1727806246447,-151.0,0.00015135,2]
[339650410,1727806246466,-1137.61941,0.00015135,2]
[339650411,1727806246477,-1137.61941,0.00015135,2]
[339650412,1727806246487,-1137.61941,0.00015135,2]
[339650413,1727806246497,-1137.61941,0.00015135,2]
[339650414,1727806246508,-161.387981,0.00015135,2]
[339650415,1727806246519,-161.387981,0.00015135,2]
[339650416,1727806246530,-161.387981,0.00015135,2]
[339650417,1727806246540,-161.387981,0.00015135,2]
[339650418,1727806246549,-1443.505763,0.00015135,2]
[339650419,1727806246560,-1443.505763,0.00015135,2]
[339650420,1727806246569,-1443.505763,0.00015135,2]
[339650422,1727806246579,-1443.505763,0.00015135,2]
[339650424,1727806246590,-162.290502,0.00015135,2]
[339650425,1727806246601,-162.290502,0.00015135,2]
[339650427,1727806246611,-162.290502,0.00015135,2]
[339650429,1727806246622,-162.290502,0.00015135,2]
[339650431,1727806246632,-151.0,0.00015135,2]
[339650433,1727806246642,-151.0,0.00015135,2]
[339650435,1727806246653,-151.0,0.00015135,2]
[339650437,1727806246663,-201.091688,0.00015135,2]
[339650439,1727806246674,-500.0,0.00015136,2]
[339650440,1727806246684,-474.96042,0.00015144,2]
[339650442,1727806246694,-474.96042,0.00015144,2]
[339650444,1727806246713,-151.0,0.00015144,2]
[339650445,1727806246722,-874.237809,0.00015144,2]
[339650447,1727806246732,-874.237809,0.00015144,2]
[339650449,1727806246741,-165543.71158866,0.00015145,2]
[339650451,1727806246751,-63670.3128258,0.00015145,2]
[339650453,1727806246761,-151.0,0.00015145,2]
[339650454,1727806246772,-151.0,0.00015145,2]
[339650455,1727806246782,-151.0,0.00015145,2]
[339650456,1727806246792,-151.0,0.00015145,2]
[339650457,1727806246804,-151.029546,0.00015145,2]
[339650458,1727806246815,-152.192066,0.00015145,2]
[339650459,1727806246824,-151.0,0.00015145,2]
[339650460,1727806246834,-151.0,0.00015145,2]
[339650461,1727806246843,-152.192066,0.00015145,2]
[339650462,1727806246853,-2969.496439,0.00015145,2]
[339650463,1727806246863,-2969.496439,0.00015145,2]
[339650464,1727806246872,-390.068143,0.00015145,2]
[339650465,1727806246882,-390.068143,0.00015145,2]
[339650466,1727806246891,-332.789776,0.00015145,2]
[339650467,1727806246900,-332.789776,0.00015145,2]
[339650468,1727806246911,-1045.858683,0.00015145,2]
[339650469,1727806246921,-151.0,0.00015145,2]
[339650470,1727806246931,-1045.858683,0.00015145,2]
[339650471,1727806246941,-151.0,0.00015145,2]
[339650472,1727806246958,-227.974379,0.00015145,2]
[339650473,1727806246967,-157.171111,0.00015145,2]
[339650474,1727806246977,-157.171111,0.00015145,2]
[339650475,1727806246987,-611.418978,0.00015145,2]
[339650476,1727806246999,-611.418978,0.00015145,2]
[339650477,1727806247009,-981.825352,0.00015145,2]
[339650478,1727806247018,-981.825352,0.00015145,2]
[339650479,1727806247029,-240.136454,0.00015145,2]
[339650480,1727806247039,-240.136454,0.00015145,2]
[339650481,1727806247050,-151.0,0.00015145,2]
[339650482,1727806247061,-151.0,0.00015145,2]
[339650483,1727806247072,-226.100847,0.00015145,2]
[339650484,1727806247082,-151.0,0.00015145,2]
[339650485,1727806247091,-226.100847,0.00015145,2]
[339650486,1727806247104,-151.0,0.00015145,2]
[339650487,1727806247116,-871.446969,0.00015145,2]
[339650488,1727806247125,-871.446969,0.00015145,2]
[339650489,1727806247134,-199.831203,0.00015145,2]
[339650490,1727806247145,-199.831203,0.00015145,2]
[339650491,1727806247157,-7107.630399,0.00015145,2]
[339650492,1727806247167,-7107.630399,0.00015145,2]
[339650493,1727806247178,-151.0,0.00015145,2]
[339650494,1727806247188,-151.0,0.00015145,2]
[339650495,1727806247200,-2161.636429,0.00015145,2]
[339650496,1727806247215,-2161.636429,0.00015145,2]
[339650497,1727806247226,-2161.636429,0.00015145,2]
[339650498,1727806247236,-2161.636429,0.00015145,2]
[339650499,1727806247245,-1137.61941,0.00015145,2]
[339650500,1727806247255,-1137.61941,0.00015145,2]
[339650501,1727806247267,-161.387981,0.00015145,2]
[339650502,1727806247276,-161.387981,0.00015145,2]
[339650503,1727806247285,-1443.505763,0.00015145,2]
[339650504,1727806247295,-1443.505763,0.00015145,2]
[339650505,1727806247306,-474.96042,0.00015145,2]
[339650506,1727806247316,-474.96042,0.00015145,2]
[339650507,1727806247325,-162.290502,0.00015145,2]
[339650508,1727806247334,-162.290502,0.00015145,2]
[339650509,1727806247344,-151.0,0.00015145,2]
[339650510,1727806247355,-151.0,0.00015145,2]
[339650511,1727806247365,-151.0,0.00015145,2]
[339650512,1727806247375,-151.0,0.00015145,2]
[339650513,1727806247385,-151.0,0.00015145,2]
[339650514,1727806247396,-151.0,0.00015145,2]
[339650515,1727806247406,-151.0,0.00015145,2]
[339650516,1727806247418,-151.0,0.00015145,2]
[339650517,1727806247428,-874.237809,0.00015145,2]
[339650518,1727806247438,-874.237809,0.00015145,2]
[339650519,1727806247447,-500.0,0.00015173,2]
[339650520,1727806247461,-500.0,0.00015173,2]
[339650521,1727806247471,-500.0,0.00015173,2]
[339650522,1727806247482,-500.0,0.00015173,2]
[339650523,1727806247491,-500.0,0.00015173,2]
[339650524,1727806247502,-500.0,0.00015173,2]
[339650525,1727806247514,-500.0,0.00015173,2]
[339650526,1727806247523,-500.0,0.00015173,2]
[339650527,1727806247533,-500.0,0.00015173,2]
[339650528,1727806247543,-500.0,0.00015173,2]
[339650529,1727806247552,-500.0,0.00015173,2]
[339650530,1727806247562,-500.05577446,0.00015173,2]
[339650531,1727806247573,-500.0,0.00015173,2]
[339650532,1727806247584,-507.73685717,0.00015173,2]
[339650533,1727806247750,-500.0,0.00015173,2]
[339650534,1727806247762,-500.0,0.00015173,2]
[339650535,1727806247772,-500.0,0.00015173,2]
[339650536,1727806247782,-607.59279212,0.00015173,2]
[339650537,1727806247792,-500.0,0.00015173,2]
[339650538,1727806247802,-500.0,0.00015173,2]
[339650539,1727806247812,-500.0,0.00015173,2]
[339650540,1727806247823,-1699.308825,0.00015173,2]
[339650541,1727806247834,-1699.308825,0.00015173,2]
[339650542,1727806247844,-474.96042,0.00015173,2]
[339650543,1727806247855,-474.96042,0.00015173,2]
[339650544,1727806247866,-151.0,0.00015173,2]
[339650545,1727806247876,-874.237809,0.00015173,2]
[339650546,1727806247887,-874.237809,0.00015173,2]
[339650547,1727806247897,-151.0,0.00015175,2]
[339650548,1727806247909,-180.631109,0.00015175,2]
[339650549,1727806247919,-151.0,0.0001519,2]
[339650550,1727806247928,-151.0,0.0001519,2]
[339650551,1727806247938,-981.825352,0.0001519,2]
[339650552,1727806247949,-981.825352,0.0001519,2]
[339650553,1727806247964,-237.0,0.0001519,2]
[339650554,1727806247977,-151.0,0.0001519,2]
[339650555,1727806247989,-151.0,0.000152,2]
[339650556,1727806247998,-151.0,0.000152,2]
[339650557,1727806248009,-151.0,0.000152,2]
[339650558,1727806248020,-151.0,0.000152,2]
[339650559,1727806248031,-150.112233,0.000152,2]
[339650560,1727806248041,-150.112233,0.000152,2]
[339650561,1727806248051,-240.136454,0.000152,2]
[339650562,1727806248061,-240.136454,0.000152,2]
[339650563,1727806248070,-151.0,0.000152,2]
[339650564,1727806248081,-212.350968,0.000152,2]
[339650565,1727806248094,-151.0,0.000152,2]
[339650566,1727806248103,-151.0,0.000152,2]
[339650567,1727806248113,-150.112233,0.000152,2]
[339650568,1727806248123,-150.112233,0.000152,2]
[339650569,1727806248135,-151.0,0.000152,2]
[339650570,1727806248145,-206.33541,0.000152,2]
[339650571,1727806248155,-206.33541,0.000152,2]
[339650572,1727806248166,-151.0,0.000152,2]
[339650573,1727806248177,-2855.358596,0.000152,2]
[339650574,1727806248187,-2855.358596,0.000152,2]
[339650575,1727806248197,-151.0,0.000152,2]
[339650576,1727806248211,-566.29403,0.000152,2]
[339650577,1727806248221,-566.29403,0.000152,2]
[339650578,1727806248231,-170.715078,0.000152,2]
[339650579,1727806248242,-170.715078,0.000152,2]
[339650580,1727806248252,-151.0,0.000152,2]
[339650581,1727806248261,-209.530203,0.000152,2]
[339650582,1727806248272,-209.530203,0.000152,2]
[339650583,1727806248281,-726.260582,0.000152,2]
[339650584,1727806248291,-726.260582,0.000152,2]
[339650585,1727806248301,-151.0,0.000152,2]
[339650586,1727806248311,-151.0,0.000152,2]
[339650587,1727806248321,-151.0,0.000152,2]
[339650588,1727806248331,-1134.960573,0.000152,2]
[339650589,1727806248342,-151.0,0.000152,2]
[339650590,1727806248352,-1134.960573,0.000152,2]
[339650591,1727806248363,-150.448302,0.000152,2]
[339650592,1727806248373,-151.0,0.000152,2]
[339650593,1727806248384,-2643.033937,0.000152,2]
[339650594,1727806248394,-2643.033937,0.000152,2]
[339650595,1727806248404,-151.0,0.000152,2]
[339650596,1727806248414,-215.140546,0.000152,2]
[339650597,1727806248425,-151.0,0.000152,2]
[339650598,1727806248436,-215.140546,0.000152,2]